[Event "*** SCC Grand Prix: Titled Tuesday Blitz"]
[Site "Chess.com"]
[Date "2020.10.06"]
[Round "4"]
[White "saraswathii"]
[Black "Gurvich_Vitaly"]
[Result "0-1"]
[WhiteElo "2372"]
[BlackElo "2629"]
[TimeControl "180+1"]
[EndTime "10:41:03 PDT"]
[Termination "Gurvich_Vitaly won by resignation"]

1. e4 {[%clk 0:03:00.9]} 1... c5 {[%clk 0:02:59.6]} 2. Nf3 {[%clk 0:02:49.4]}
2... Nc6 {[%clk 0:02:54.7]} 3. d3 {[%clk 0:02:49.2]} 3... d5 {[%clk 0:02:47.7]}
4. Nbd2 {[%clk 0:02:47.5]} 4... g6 {[%clk 0:02:46.2]} 5. g3 {[%clk 0:02:32.3]}
5... Bg7 {[%clk 0:02:45.4]} 6. Bg2 {[%clk 0:02:17.9]} 6... e6 {[%clk 0:02:44.4]}
7. O-O {[%clk 0:02:09.8]} 7... Nge7 {[%clk 0:02:38.8]} 8. c3 {[%clk 0:02:01.7]}
8... O-O {[%clk 0:02:34.4]} 9. Qe2 {[%clk 0:01:56.7]} 9... a5 {[%clk 0:02:29.9]}
10. a4 {[%clk 0:01:55.9]} 10... b6 {[%clk 0:02:29.3]} 11. e5 {[%clk 0:01:55.4]}
11... Ba6 {[%clk 0:02:28.2]} 12. Re1 {[%clk 0:01:52.6]} 12... Rc8 {[%clk
0:02:14.8]} 13. Nf1 {[%clk 0:01:53.5]} 13... Qc7 {[%clk 0:02:11.6]} 14. Bf4
{[%clk 0:01:51.2]} 14... b5 {[%clk 0:01:59.6]} 15. axb5 {[%clk 0:01:49.6]} 15...
Bxb5 {[%clk 0:02:00.5]} 16. h4 {[%clk 0:01:47.7]} 16... Qb7 {[%clk 0:01:56.2]}
17. h5 {[%clk 0:01:43.1]} 17... Rfd8 {[%clk 0:01:46.6]} 18. N1h2 {[%clk
0:01:39.5]} 18... Ba6 {[%clk 0:01:38.4]} 19. Ng4 {[%clk 0:01:33.9]} 19... Nf5
{[%clk 0:01:37.4]} 20. Nf6+ {[%clk 0:01:30.3]} 20... Bxf6 {[%clk 0:01:36.1]} 21.
exf6 {[%clk 0:01:31.2]} 21... Qb5 {[%clk 0:01:35.4]} 22. Rad1 {[%clk 0:01:27.1]}
22... Rd7 {[%clk 0:01:24]} 23. hxg6 {[%clk 0:01:14.9]} 23... hxg6 {[%clk
0:01:19.7]} 24. Ng5 {[%clk 0:01:14.2]} 24... Re8 {[%clk 0:01:09.5]} 25. Rd2
{[%clk 0:00:57.7]} 25... Qb6 {[%clk 0:01:07.5]} 26. g4 {[%clk 0:00:36.1]} 26...
Nd6 {[%clk 0:01:04]} 27. Qf3 {[%clk 0:00:26.3]} 27... Qd8 {[%clk 0:00:57.1]} 28.
Be5 {[%clk 0:00:14.7]} 28... Nxe5 {[%clk 0:00:54.1]} 29. Rxe5 {[%clk 0:00:15.6]}
29... Bb7 {[%clk 0:00:52.1]} 30. d4 {[%clk 0:00:11.7]} 30... Nc4 {[%clk
0:00:49.5]} 31. Rde2 {[%clk 0:00:10.8]} 31... cxd4 {[%clk 0:00:46.6]} 32. cxd4
{[%clk 0:00:10.4]} 32... Bc6 {[%clk 0:00:33.4]} 33. Qf4 {[%clk 0:00:08.9]} 33...
Nd6 {[%clk 0:00:31.6]} 34. Nf3 {[%clk 0:00:04.2]} 34... Ne4 {[%clk 0:00:19.9]}
35. g5 {[%clk 0:00:04.1]} 35... Rb7 {[%clk 0:00:15]} 36. Qh4 {[%clk 0:00:04.1]}
36... Rb3 {[%clk 0:00:14.4]} 37. Qh6 {[%clk 0:00:03.5]} 37... Nxf6 {[%clk
0:00:13.9]} 38. gxf6 {[%clk 0:00:02.9]} 38... Qxf6 {[%clk 0:00:14.8]} 39. Rh5
{[%clk 0:00:02.4]} 39... Qg7 {[%clk 0:00:14.6]} 40. Qxg7+ {[%clk 0:00:02.6]}
40... Kxg7 {[%clk 0:00:15.5]} 41. Rh3 {[%clk 0:00:03]} 41... Reb8 {[%clk
0:00:15.5]} 42. Ne5 {[%clk 0:00:03.2]} 42... Be8 {[%clk 0:00:14.3]} 43. Rxb3
{[%clk 0:00:02.8]} 43... Rxb3 {[%clk 0:00:15.2]} 44. Rd2 {[%clk 0:00:02.8]}
44... Bb5 {[%clk 0:00:12.3]} 45. Bf1 {[%clk 0:00:02.7]} 45... Be8 {[%clk
0:00:11.1]} 46. Nd3 {[%clk 0:00:03]} 46... a4 {[%clk 0:00:08.4]} 47. Nc5 {[%clk
0:00:03.4]} 47... Rb4 {[%clk 0:00:08.4]} 48. Be2 {[%clk 0:00:02.4]} 48... Kf6
{[%clk 0:00:08.2]} 49. Kf1 {[%clk 0:00:02.8]} 49... g5 {[%clk 0:00:08.4]} 50.
Ke1 {[%clk 0:00:03.2]} 50... Ke7 {[%clk 0:00:08.6]} 51. Kd1 {[%clk 0:00:03.7]}
51... f6 {[%clk 0:00:08.7]} 52. Kc1 {[%clk 0:00:04.3]} 52... Kd6 {[%clk
0:00:08.7]} 53. Bg4 {[%clk 0:00:03.9]} 53... e5 {[%clk 0:00:08.8]} 54. Nd3
{[%clk 0:00:04.2]} 54... Rxd4 {[%clk 0:00:08.4]} 55. Kc2 {[%clk 0:00:04.5]}
55... Bg6 {[%clk 0:00:07.9]} 56. Be2 {[%clk 0:00:04.7]} 56... Rc4+ {[%clk
0:00:07.5]} 57. Kd1 {[%clk 0:00:04.6]} 57... Rh4 {[%clk 0:00:06.7]} 58. Nc1
{[%clk 0:00:03.5]} 58... d4 {[%clk 0:00:06.6]} 59. Bd3 {[%clk 0:00:03]} 59...
Rh1+ {[%clk 0:00:05.5]} 60. Kc2 {[%clk 0:00:03]} 60... Bf7 {[%clk 0:00:05]} 61.
b3 {[%clk 0:00:02.8]} 61... axb3+ {[%clk 0:00:04.8]} 62. Nxb3 {[%clk 0:00:03.7]}
62... Bd5 {[%clk 0:00:05.5]} 63. Bf5 {[%clk 0:00:03.4]} 63... Rh8 {[%clk
0:00:04.3]} 64. Bd3 {[%clk 0:00:03]} 64... Rb8 {[%clk 0:00:04.6]} 65. Nc1 {[%clk
0:00:02.6]} 65... e4 {[%clk 0:00:04.9]} 66. Bf1 {[%clk 0:00:02.3]} 66... Ke5
{[%clk 0:00:04.3]} 67. Kd1 {[%clk 0:00:02.5]} 67... Rc8 {[%clk 0:00:03.9]} 68.
Bg2 {[%clk 0:00:02.8]} 68... f5 {[%clk 0:00:03.8]} 69. Ne2 {[%clk 0:00:02.7]}
69... d3 {[%clk 0:00:03.6]} 70. Nc1 {[%clk 0:00:03.1]} 70... g4 {[%clk
0:00:03.6]} 71. Bh1 {[%clk 0:00:01.2]} 71... Bc4 {[%clk 0:00:03.1]} 72. Bg2
{[%clk 0:00:01.5]} 72... Rh8 {[%clk 0:00:02]} 73. Bf1 {[%clk 0:00:01.5]} 73...
Rh2 {[%clk 0:00:02.4]} 74. Ke1 {[%clk 0:00:02.1]} 74... f4 {[%clk 0:00:02.4]}
75. f3 {[%clk 0:00:02.4]} 75... Rxd2 {[%clk 0:00:01.6]} 76. Kxd2 {[%clk
0:00:03.2]} 76... e3+ {[%clk 0:00:02.5]} 77. Kc3 {[%clk 0:00:03.5]} 77... d2
{[%clk 0:00:02.4]} 78. Be2 {[%clk 0:00:03.9]} 78... dxc1=Q+ {[%clk 0:00:02.4]}
79. Kb4 {[%clk 0:00:04.2]} 79... Qd2+ {[%clk 0:00:03.3]} 80. Kxc4 {[%clk
0:00:04.4]} 80... gxf3 {[%clk 0:00:03.9]} 81. Bxf3 {[%clk 0:00:04.3]} 81... Qf2
{[%clk 0:00:04.8]} 82. Kc5 {[%clk 0:00:04.3]} 82... e2+ {[%clk 0:00:05.7]} 83.
Kc6 {[%clk 0:00:03.6]} 83... Qxf3+ {[%clk 0:00:05.9]} 84. Kc7 {[%clk 0:00:04.5]}
84... Qe3 {[%clk 0:00:06.8]} 0-1

[Event "*** SCC Grand Prix: Titled Tuesday Blitz"]
[Site "Chess.com"]
[Date "2020.10.06"]
[Round "4"]
[White "hungrycaterpillar4"]
[Black "abhidabhi"]
[Result "0-1"]
[WhiteElo "2619"]
[BlackElo "2775"]
[TimeControl "180+1"]
[EndTime "10:41:08 PDT"]
[Termination "abhidabhi won by resignation"]

1. d4 {[%clk 0:03:00.9]} 1... Nf6 {[%clk 0:03:00.2]} 2. Bf4 {[%clk 0:03:00.6]}
2... b6 {[%clk 0:02:57.1]} 3. e3 {[%clk 0:03:00.1]} 3... Bb7 {[%clk 0:02:57.5]}
4. Nf3 {[%clk 0:03:00.7]} 4... c5 {[%clk 0:02:57.2]} 5. c3 {[%clk 0:02:59.7]}
5... g6 {[%clk 0:02:56.8]} 6. Nbd2 {[%clk 0:02:59]} 6... Bg7 {[%clk 0:02:57.1]}
7. h3 {[%clk 0:02:59.7]} 7... O-O {[%clk 0:02:57.1]} 8. Bh2 {[%clk 0:02:59.9]}
8... d6 {[%clk 0:02:57.2]} 9. Be2 {[%clk 0:02:59.6]} 9... Nbd7 {[%clk
0:02:56.9]} 10. O-O {[%clk 0:03:00.2]} 10... a6 {[%clk 0:02:54.8]} 11. a4 {[%clk
0:03:00.6]} 11... Qc7 {[%clk 0:02:51.3]} 12. Re1 {[%clk 0:03:00.4]} 12... Rfe8
{[%clk 0:02:47.4]} 13. Rc1 {[%clk 0:03:00.4]} 13... Bc6 {[%clk 0:02:42.4]} 14.
Qb3 {[%clk 0:02:52.5]} 14... Qb7 {[%clk 0:02:29.4]} 15. Bc4 {[%clk 0:02:44.5]}
15... d5 {[%clk 0:02:13.2]} 16. Bf1 {[%clk 0:02:44]} 16... b5 {[%clk 0:02:06.9]}
17. axb5 {[%clk 0:02:42.4]} 17... Bxb5 {[%clk 0:01:56.3]} 18. Qc2 {[%clk
0:02:38.2]} 18... Bxf1 {[%clk 0:01:49.2]} 19. Rxf1 {[%clk 0:02:39.1]} 19... Rec8
{[%clk 0:01:48.5]} 20. Ra1 {[%clk 0:02:36]} 20... a5 {[%clk 0:01:48]} 21. Ne5
{[%clk 0:02:21.4]} 21... e6 {[%clk 0:01:46.2]} 22. Ndf3 {[%clk 0:02:14.6]} 22...
Nb6 {[%clk 0:01:38.1]} 23. Ng5 {[%clk 0:02:07.7]} 23... cxd4 {[%clk 0:01:31.8]}
24. exd4 {[%clk 0:02:04.9]} 24... Rf8 {[%clk 0:01:11.9]} 25. Rfe1 {[%clk
0:02:01.1]} 25... Nfd7 {[%clk 0:00:58.9]} 26. h4 {[%clk 0:01:25.2]} 26... Nxe5
{[%clk 0:00:57]} 27. dxe5 {[%clk 0:01:22]} 27... Rfc8 {[%clk 0:00:50.8]} 28. h5
{[%clk 0:01:19.7]} 28... Qe7 {[%clk 0:00:33.1]} 29. Nf3 {[%clk 0:01:07.5]} 29...
Nc4 {[%clk 0:00:30.5]} 30. b3 {[%clk 0:01:04.7]} 30... Nb6 {[%clk 0:00:26.5]}
31. Bf4 {[%clk 0:01:04.8]} 31... Nd7 {[%clk 0:00:22.6]} 32. h6 {[%clk
0:01:04.3]} 32... Bf8 {[%clk 0:00:18.8]} 33. Rec1 {[%clk 0:00:55.8]} 33... Nc5
{[%clk 0:00:16.1]} 34. Bg5 {[%clk 0:00:55.1]} 34... Qb7 {[%clk 0:00:15]} 35.
Rab1 {[%clk 0:00:53.5]} 35... Ne4 {[%clk 0:00:14.9]} 36. c4 {[%clk 0:00:49.5]}
36... Nxg5 {[%clk 0:00:14.7]} 37. Nxg5 {[%clk 0:00:49]} 37... Bxh6 {[%clk
0:00:15]} 38. f4 {[%clk 0:00:43.6]} 38... dxc4 {[%clk 0:00:12.5]} 39. bxc4
{[%clk 0:00:43.4]} 39... Qa7+ {[%clk 0:00:12.5]} 40. c5 {[%clk 0:00:39.4]} 40...
Bxg5 {[%clk 0:00:12.1]} 41. fxg5 {[%clk 0:00:40.3]} 41... Rc6 {[%clk 0:00:11.2]}
42. Rb5 {[%clk 0:00:38.9]} 42... Rac8 {[%clk 0:00:11.1]} 43. Qf2 {[%clk
0:00:26.2]} 43... a4 {[%clk 0:00:10.5]} 44. Qd2 {[%clk 0:00:16.6]} 44... a3
{[%clk 0:00:10.1]} 45. Ra5 {[%clk 0:00:17]} 45... Qe7 {[%clk 0:00:09]} 46. Rxa3
{[%clk 0:00:15.5]} 46... Rxc5 {[%clk 0:00:08.6]} 47. Re1 {[%clk 0:00:13.7]}
47... Rxe5 {[%clk 0:00:05]} 48. Rxe5 {[%clk 0:00:14.6]} 48... Qxa3 {[%clk
0:00:05.1]} 49. Re1 {[%clk 0:00:15.5]} 49... Qc5+ {[%clk 0:00:04.7]} 50. Kh1
{[%clk 0:00:16.1]} 50... Qd5 {[%clk 0:00:04.2]} 51. Qf4 {[%clk 0:00:16.5]} 51...
Qf5 {[%clk 0:00:02.2]} 52. Qe3 {[%clk 0:00:16]} 52... Qc5 {[%clk 0:00:02.2]} 53.
Qf4 {[%clk 0:00:15.9]} 53... Qc7 {[%clk 0:00:01.7]} 54. Qd2 {[%clk 0:00:16]}
54... Rd8 {[%clk 0:00:02]} 55. Qa2 {[%clk 0:00:16.4]} 55... Qd6 {[%clk
0:00:02.2]} 56. Qa1 {[%clk 0:00:16.9]} 56... Qd2 {[%clk 0:00:02.2]} 57. Rf1
{[%clk 0:00:17.2]} 57... Qxg5 {[%clk 0:00:02.3]} 58. Qa7 {[%clk 0:00:17]} 58...
Qh4+ {[%clk 0:00:02.8]} 59. Kg1 {[%clk 0:00:15.9]} 59... Qd4+ {[%clk 0:00:03.7]}
60. Qxd4 {[%clk 0:00:16.4]} 60... Rxd4 {[%clk 0:00:04.6]} 61. Kf2 {[%clk
0:00:17.3]} 61... Kg7 {[%clk 0:00:05]} 62. Ke3 {[%clk 0:00:17.6]} 62... Rd5
{[%clk 0:00:05.5]} 63. Ra1 {[%clk 0:00:17.5]} 63... h5 {[%clk 0:00:06.2]} 64.
Kf4 {[%clk 0:00:17.8]} 64... Rf5+ {[%clk 0:00:06.6]} 65. Kg3 {[%clk 0:00:18.1]}
65... Kf6 {[%clk 0:00:07.3]} 66. Kh4 {[%clk 0:00:18.6]} 66... Rf4+ {[%clk
0:00:06.8]} 67. Kh3 {[%clk 0:00:18.8]} 67... g5 {[%clk 0:00:07.3]} 68. Ra3
{[%clk 0:00:15.7]} 68... h4 {[%clk 0:00:06.9]} 69. Ra8 {[%clk 0:00:15.2]} 69...
Kf5 {[%clk 0:00:07.1]} 70. Rg8 {[%clk 0:00:15.2]} 70... f6 {[%clk 0:00:07.2]}
71. Re8 {[%clk 0:00:14.7]} 71... e5 {[%clk 0:00:07.5]} 72. Ra8 {[%clk
0:00:14.9]} 72... Rf1 {[%clk 0:00:06.6]} 73. Kh2 {[%clk 0:00:15.4]} 73... Kf4
{[%clk 0:00:05.9]} 74. Ra4+ {[%clk 0:00:15.5]} 74... e4 {[%clk 0:00:06.1]} 75.
Rb4 {[%clk 0:00:15.7]} 75... f5 {[%clk 0:00:06.5]} 76. Ra4 {[%clk 0:00:14.7]}
76... g4 {[%clk 0:00:06.7]} 77. g3+ {[%clk 0:00:15.3]} 77... hxg3+ {[%clk
0:00:06.7]} 78. Kg2 {[%clk 0:00:16.2]} 78... Rf2+ {[%clk 0:00:07.1]} 79. Kh1
{[%clk 0:00:15.7]} 79... Kf3 {[%clk 0:00:07]} 80. Ra3+ {[%clk 0:00:14.9]} 80...
e3 {[%clk 0:00:07.4]} 81. Ra1 {[%clk 0:00:13.4]} 81... g2+ {[%clk 0:00:07.2]}
82. Kh2 {[%clk 0:00:13.8]} 82... f4 {[%clk 0:00:06.3]} 83. Rg1 {[%clk
0:00:10.7]} 83... g3+ {[%clk 0:00:05.8]} 84. Kh3 {[%clk 0:00:10.4]} 84... Rf1
{[%clk 0:00:05.7]} 0-1

[Event "*** SCC Grand Prix: Titled Tuesday Blitz"]
[Site "Chess.com"]
[Date "2020.10.06"]
[Round "4"]
[White "KuzubovYuriy"]
[Black "SilviusTiberius"]
[Result "1-0"]
[WhiteElo "2932"]
[BlackElo "2655"]
[TimeControl "180+1"]
[EndTime "10:41:21 PDT"]
[Termination "KuzubovYuriy won by resignation"]

1. d4 {[%clk 0:03:00.9]} 1... Nf6 {[%clk 0:03:00]} 2. Nf3 {[%clk 0:02:59.3]}
2... g6 {[%clk 0:03:00.3]} 3. Nbd2 {[%clk 0:02:55.4]} 3... c5 {[%clk 0:02:56.5]}
4. dxc5 {[%clk 0:02:53.3]} 4... Na6 {[%clk 0:02:51.6]} 5. e4 {[%clk 0:02:52.9]}
5... Nxc5 {[%clk 0:02:47.2]} 6. e5 {[%clk 0:02:52.6]} 6... Nd5 {[%clk
0:02:46.7]} 7. Nb3 {[%clk 0:02:51.9]} 7... Nxb3 {[%clk 0:02:42.8]} 8. axb3
{[%clk 0:02:51.4]} 8... Nb4 {[%clk 0:02:41.3]} 9. Bc4 {[%clk 0:02:33.2]} 9...
Bg7 {[%clk 0:02:41.1]} 10. O-O {[%clk 0:02:32.6]} 10... O-O {[%clk 0:02:40]} 11.
Bf4 {[%clk 0:02:28.2]} 11... b6 {[%clk 0:02:03]} 12. Qd2 {[%clk 0:02:25.3]}
12... a5 {[%clk 0:01:49.9]} 13. c3 {[%clk 0:02:19]} 13... Nc6 {[%clk 0:01:48.1]}
14. b4 {[%clk 0:02:07.8]} 14... Bb7 {[%clk 0:01:34.6]} 15. b5 {[%clk 0:02:05.8]}
15... Na7 {[%clk 0:01:34.9]} 16. Bd5 {[%clk 0:01:37.6]} 16... Qc8 {[%clk
0:01:21.3]} 17. Bxb7 {[%clk 0:01:36.2]} 17... Qxb7 {[%clk 0:01:21.1]} 18. c4
{[%clk 0:01:34.8]} 18... Rac8 {[%clk 0:01:20.7]} 19. b3 {[%clk 0:01:32.8]} 19...
f6 {[%clk 0:01:16.7]} 20. Rfe1 {[%clk 0:01:25.6]} 20... fxe5 {[%clk 0:01:10.4]}
21. Bxe5 {[%clk 0:01:25.2]} 21... Bxe5 {[%clk 0:00:45.1]} 22. Nxe5 {[%clk
0:01:24]} 22... d6 {[%clk 0:00:42.1]} 23. Ng4 {[%clk 0:01:18.7]} 23... Rc5
{[%clk 0:00:40.5]} 24. Qd4 {[%clk 0:01:00.4]} 24... h5 {[%clk 0:00:30.6]} 25.
Ne3 {[%clk 0:00:56.7]} 25... Nc8 {[%clk 0:00:28.2]} 26. Nd5 {[%clk 0:00:54.1]}
26... Qd7 {[%clk 0:00:22.9]} 27. Qe4 {[%clk 0:00:48.8]} 27... Qf5 {[%clk
0:00:11.1]} 28. Qxf5 {[%clk 0:00:46.8]} 28... Rxf5 {[%clk 0:00:10.5]} 29. f3
{[%clk 0:00:39.9]} 29... Kf7 {[%clk 0:00:08.6]} 30. Nc3 {[%clk 0:00:35]} 30...
e6 {[%clk 0:00:07.8]} 31. Kf2 {[%clk 0:00:34.1]} 31... Rc7 {[%clk 0:00:07.8]}
32. Rad1 {[%clk 0:00:33.4]} 32... d5 {[%clk 0:00:07.8]} 33. Ne2 {[%clk
0:00:19.3]} 33... dxc4 {[%clk 0:00:07.9]} 34. Nd4 {[%clk 0:00:19.4]} 34... cxb3
{[%clk 0:00:06.2]} 35. Nxf5 {[%clk 0:00:18.6]} 35... gxf5 {[%clk 0:00:06.7]} 36.
Rb1 {[%clk 0:00:18.8]} 36... Rc3 {[%clk 0:00:06.1]} 37. Re3 {[%clk 0:00:17.5]}
37... Rc2+ {[%clk 0:00:05.6]} 38. Kf1 {[%clk 0:00:16.5]} 38... a4 {[%clk
0:00:05.8]} 39. Ke1 {[%clk 0:00:12.6]} 39... Nd6 {[%clk 0:00:06.1]} 40. Re2
{[%clk 0:00:12.6]} 40... Nc4 {[%clk 0:00:06]} 41. Rxc2 {[%clk 0:00:12.4]} 41...
bxc2 {[%clk 0:00:06.6]} 42. Rc1 {[%clk 0:00:13]} 42... Na3 {[%clk 0:00:07.1]}
43. Kd2 {[%clk 0:00:12.6]} 43... Ke7 {[%clk 0:00:07.2]} 44. Kc3 {[%clk
0:00:12.8]} 44... Nxb5+ {[%clk 0:00:06.9]} 45. Kc4 {[%clk 0:00:13]} 45... Nd6+
{[%clk 0:00:07.3]} 46. Kb4 {[%clk 0:00:13.1]} 46... b5 {[%clk 0:00:08.2]} 47.
Rxc2 {[%clk 0:00:13.5]} 47... Kd7 {[%clk 0:00:08.7]} 48. f4 {[%clk 0:00:13.8]}
48... h4 {[%clk 0:00:07.5]} 49. Rc3 {[%clk 0:00:13.8]} 49... Ne4 {[%clk
0:00:06.4]} 50. Rh3 {[%clk 0:00:13.7]} 50... Kc6 {[%clk 0:00:05]} 51. Rxh4
{[%clk 0:00:13.7]} 51... Nc5 {[%clk 0:00:05.6]} 52. Rh6 {[%clk 0:00:12.9]} 52...
Nd3+ {[%clk 0:00:05.9]} 53. Ka3 {[%clk 0:00:13.1]} 53... Nxf4 {[%clk 0:00:06.4]}
54. g3 {[%clk 0:00:13.4]} 54... Nd5 {[%clk 0:00:06.7]} 55. Rxe6+ {[%clk
0:00:13.5]} 55... Kc5 {[%clk 0:00:07.4]} 56. Re5 {[%clk 0:00:13.8]} 56... Kd4
{[%clk 0:00:07.4]} 57. Rxf5 {[%clk 0:00:13.7]} 57... Ne3 {[%clk 0:00:07.6]} 58.
Rf4+ {[%clk 0:00:13.9]} 58... Kc3 {[%clk 0:00:07.3]} 59. h4 {[%clk 0:00:13.6]}
59... Nc4+ {[%clk 0:00:06.8]} 60. Rxc4+ {[%clk 0:00:12.8]} 60... Kxc4 {[%clk
0:00:06.2]} 61. h5 {[%clk 0:00:12.8]} 61... b4+ {[%clk 0:00:06.6]} 62. Kb2
{[%clk 0:00:13.2]} 62... a3+ {[%clk 0:00:06.5]} 63. Ka2 {[%clk 0:00:13.5]} 63...
b3+ {[%clk 0:00:06.5]} 64. Kxa3 {[%clk 0:00:13.1]} 64... Kc3 {[%clk 0:00:06.8]}
65. h6 {[%clk 0:00:12.6]} 65... b2 {[%clk 0:00:07.2]} 66. h7 {[%clk 0:00:13]}
66... b1=Q {[%clk 0:00:07.4]} 67. h8=Q+ {[%clk 0:00:13.9]} 67... Kd2 {[%clk
0:00:08]} 68. Qh6+ {[%clk 0:00:13.6]} 68... Ke2 {[%clk 0:00:08.1]} 69. Qf4
{[%clk 0:00:13.5]} 69... Qa1+ {[%clk 0:00:06.9]} 70. Kb4 {[%clk 0:00:13.3]}
70... Qe1+ {[%clk 0:00:06.7]} 71. Kc4 {[%clk 0:00:12.5]} 71... Qb1 {[%clk
0:00:05.5]} 72. Kd5 {[%clk 0:00:11.1]} 72... Qb5+ {[%clk 0:00:04.4]} 73. Ke6
{[%clk 0:00:11.3]} 73... Qe8+ {[%clk 0:00:04.4]} 74. Kf5 {[%clk 0:00:10.5]}
74... Qd7+ {[%clk 0:00:04.5]} 75. Kg5 {[%clk 0:00:09.6]} 75... Qg7+ {[%clk
0:00:04.2]} 76. Kh4 {[%clk 0:00:08.4]} 76... Qh7+ {[%clk 0:00:04.2]} 77. Kg4
{[%clk 0:00:08.6]} 77... Qg7+ {[%clk 0:00:04.1]} 78. Kh3 {[%clk 0:00:08.6]}
78... Qh7+ {[%clk 0:00:04]} 79. Qh4 {[%clk 0:00:08.8]} 79... Qd7+ {[%clk
0:00:03.7]} 80. Qg4+ {[%clk 0:00:09]} 80... Qxg4+ {[%clk 0:00:02.9]} 81. Kxg4
{[%clk 0:00:03.1]} 81... Ke3 {[%clk 0:00:03.8]} 82. Kh5 {[%clk 0:00:02.8]} 82...
Ke4 {[%clk 0:00:04.7]} 83. g4 {[%clk 0:00:03.6]} 83... Ke5 {[%clk 0:00:05.6]}
84. g5 {[%clk 0:00:04.5]} 84... Ke6 {[%clk 0:00:05.8]} 85. g6 {[%clk 0:00:05.4]}
85... Ke7 {[%clk 0:00:05.5]} 86. Kh6 {[%clk 0:00:06.3]} 86... Kf8 {[%clk
0:00:06.4]} 87. Kh7 {[%clk 0:00:07.2]} 87... Ke7 {[%clk 0:00:07.2]} 88. g7
{[%clk 0:00:08.1]} 1-0